[Event "Early-Titled-Tuesday-Blitz-February-20-2024"]
[Site "Chess.com"]
[Date "2024.02.20"]
[Round "7"]
[White "only_strong_moves"]
[Black "PedroGil25"]
[Result "0-1"]
[WhiteElo "2640"]
[BlackElo "2502"]
[TimeControl "180+1"]
[EndTime "9:20:37 PST"]
[Termination "PedroGil25 won by resignation"]

1. e4 {[%clk 0:03:00.9]} 1... c5 {[%clk 0:02:59.4]} 2. Nf3 {[%clk 0:03:00.1]}
2... e6 {[%clk 0:02:59.8]} 3. d4 {[%clk 0:02:59.6]} 3... cxd4 {[%clk 0:03:00.7]}
4. Nxd4 {[%clk 0:03:00.3]} 4... a6 {[%clk 0:03:01]} 5. c4 {[%clk 0:02:59.9]}
5... Nf6 {[%clk 0:03:00.2]} 6. Nc3 {[%clk 0:02:57.1]} 6... Bb4 {[%clk
0:03:00.2]} 7. e5 {[%clk 0:02:56.4]} 7... Qa5 {[%clk 0:02:50.3]} 8. exf6 {[%clk
0:02:45.8]} 8... Bxc3+ {[%clk 0:02:47.8]} 9. bxc3 {[%clk 0:02:46.7]} 9... Qxc3+
{[%clk 0:02:48.3]} 10. Qd2 {[%clk 0:02:47.4]} 10... Qxa1 {[%clk 0:02:48.6]} 11.
fxg7 {[%clk 0:02:47.7]} 11... Rg8 {[%clk 0:02:49.2]} 12. Qe3 {[%clk 0:01:58.2]}
12... Nc6 {[%clk 0:02:26.6]} 13. Nf5 {[%clk 0:01:57.6]} 13... Qe5 {[%clk
0:02:25.5]} 14. Qxe5 {[%clk 0:01:54.3]} 14... Nxe5 {[%clk 0:02:26.4]} 15. Nd6+
{[%clk 0:01:52.3]} 15... Kd8 {[%clk 0:02:25.6]} 16. Bf4 {[%clk 0:01:30.3]} 16...
Ng6 {[%clk 0:02:20.1]} 17. Bg5+ {[%clk 0:01:28.6]} 17... Kc7 {[%clk 0:02:20.5]}
18. c5 {[%clk 0:01:26]} 18... b6 {[%clk 0:02:16.7]} 19. Bh6 {[%clk 0:01:24]}
19... bxc5 {[%clk 0:02:16.1]} 20. Ne4 {[%clk 0:01:24.5]} 20... Bb7 {[%clk
0:02:14.9]} 21. Nf6 {[%clk 0:01:23.9]} 21... Bd5 {[%clk 0:02:11.6]} 22. a3
{[%clk 0:01:16.5]} 22... Ne7 {[%clk 0:02:10.8]} 23. Bd3 {[%clk 0:01:07.3]} 23...
Bxg2 {[%clk 0:01:38]} 24. Rg1 {[%clk 0:01:06.8]} 24... Bh3 {[%clk 0:01:38.2]}
25. Nxg8 {[%clk 0:00:31.7]} 25... Nxg8 {[%clk 0:01:39.1]} 26. Be3 {[%clk
0:00:30.1]} 26... d6 {[%clk 0:01:31.6]} 27. Bxh7 {[%clk 0:00:29]} 27... Rb8
{[%clk 0:01:28.4]} 28. Kd2 {[%clk 0:00:21.2]} 28... e5 {[%clk 0:01:26]} 29. f4
{[%clk 0:00:10.4]} 29... f6 {[%clk 0:01:09.5]} 30. fxe5 {[%clk 0:00:08.4]} 30...
fxe5 {[%clk 0:01:10.4]} 31. Rg3 {[%clk 0:00:04.9]} 31... Be6 {[%clk 0:01:10.3]}
32. Rf3 {[%clk 0:00:05.4]} 32... Rb2+ {[%clk 0:01:03]} 33. Kc3 {[%clk
0:00:04.8]} 33... Rb3+ {[%clk 0:01:02.7]} 34. Kd2 {[%clk 0:00:05.4]} 34... Rb2+
{[%clk 0:01:00.2]} 35. Kc1 {[%clk 0:00:05.9]} 35... Rxh2 {[%clk 0:01:00.2]} 36.
Bxg8 {[%clk 0:00:05.1]} 36... Bxg8 {[%clk 0:01:01.1]} 37. Rf8 {[%clk 0:00:05.5]}
37... Bc4 {[%clk 0:01:01]} 38. g8=Q {[%clk 0:00:05.6]} 38... Bxg8 {[%clk
0:01:01.5]} 39. Rxg8 {[%clk 0:00:05.9]} 39... Kc6 {[%clk 0:00:49]} 40. Rc8+
{[%clk 0:00:04.8]} 40... Kb5 {[%clk 0:00:48.5]} 41. Rd8 {[%clk 0:00:04.9]} 41...
Rh3 {[%clk 0:00:47.9]} 42. Bd2 {[%clk 0:00:04.3]} 42... Rxa3 {[%clk 0:00:46]}
43. Rxd6 {[%clk 0:00:04.8]} 43... Ra1+ {[%clk 0:00:41.1]} 44. Kb2 {[%clk
0:00:04.9]} 44... Rh1 {[%clk 0:00:40.9]} 45. Kc2 {[%clk 0:00:05.4]} 45... Rh2
{[%clk 0:00:40.8]} 46. Re6 {[%clk 0:00:05.7]} 46... Rh5 {[%clk 0:00:39.9]} 47.
Bc3 {[%clk 0:00:05.3]} 47... Rh2+ {[%clk 0:00:40.1]} 48. Kd3 {[%clk 0:00:05.6]}
48... Rh3+ {[%clk 0:00:40.3]} 49. Kc2 {[%clk 0:00:06.1]} 49... Rh2+ {[%clk
0:00:40.5]} 50. Kb3 {[%clk 0:00:05.8]} 50... Rh3 {[%clk 0:00:40.7]} 51. Re8
{[%clk 0:00:03.5]} 51... c4+ {[%clk 0:00:35.6]} 52. Kb2 {[%clk 0:00:04.1]} 52...
Rh2+ {[%clk 0:00:34.5]} 53. Ka3 {[%clk 0:00:04.2]} 53... Rh3 {[%clk 0:00:33.4]}
54. Kb2 {[%clk 0:00:03.5]} 54... Rh2+ {[%clk 0:00:33.4]} 55. Kc1 {[%clk
0:00:04.2]} 55... Ka4 {[%clk 0:00:33]} 56. Rxe5 {[%clk 0:00:03.2]} 56... Kb3
{[%clk 0:00:32.7]} 57. Re3 {[%clk 0:00:03]} 57... Rc2+ {[%clk 0:00:28.4]} 58.
Kb1 {[%clk 0:00:03.3]} 58... Rxc3 {[%clk 0:00:29.3]} 59. Re6 {[%clk 0:00:03.7]}
59... Rh3 {[%clk 0:00:28.8]} 60. Rb6+ {[%clk 0:00:03.2]} 60... Kc3 {[%clk
0:00:29.1]} 61. Rxa6 {[%clk 0:00:03.9]} 61... Rh1+ {[%clk 0:00:29.3]} 62. Ka2
{[%clk 0:00:04.6]} 62... Kc2 {[%clk 0:00:29.6]} 63. Rc6 {[%clk 0:00:04.2]} 63...
c3 {[%clk 0:00:30.2]} 64. Rc8 {[%clk 0:00:04.6]} 64... Rh7 {[%clk 0:00:30.5]}
65. Ra8 {[%clk 0:00:04.7]} 65... Rc7 {[%clk 0:00:30.8]} 66. Ra6 {[%clk
0:00:04.4]} 66... Kc1 {[%clk 0:00:31.2]} 67. Rh6 {[%clk 0:00:02.1]} 67... c2
{[%clk 0:00:31.4]} 68. Rh1+ {[%clk 0:00:02.6]} 68... Kd2 {[%clk 0:00:31.6]} 69.
Rh2+ {[%clk 0:00:03.5]} 69... Ke3 {[%clk 0:00:31.7]} 70. Rh3+ {[%clk 0:00:03.6]}
70... Kf4 {[%clk 0:00:31.8]} 0-1

[Event "Early-Titled-Tuesday-Blitz-February-20-2024"]
[Site "Chess.com"]
[Date "2024.02.20"]
[Round "7"]
[White "szachuspl"]
[Black "profedechess93"]
[Result "1-0"]
[WhiteElo "2517"]
[BlackElo "2622"]
[TimeControl "180+1"]
[EndTime "9:20:40 PST"]
[Termination "szachuspl won by resignation"]

1. d4 {[%clk 0:03:00.9]} 1... d5 {[%clk 0:02:59.5]} 2. c4 {[%clk 0:03:00.5]}
2... c6 {[%clk 0:02:59.9]} 3. Nc3 {[%clk 0:03:00]} 3... Nf6 {[%clk 0:03:00.2]}
4. Nf3 {[%clk 0:03:00.2]} 4... dxc4 {[%clk 0:02:58.6]} 5. a4 {[%clk 0:02:58.6]}
5... Bf5 {[%clk 0:02:58.7]} 6. Ne5 {[%clk 0:02:58.7]} 6... Nbd7 {[%clk
0:02:56.9]} 7. Nxc4 {[%clk 0:02:58.9]} 7... Qc7 {[%clk 0:02:57.5]} 8. g3 {[%clk
0:02:58.6]} 8... e5 {[%clk 0:02:58.1]} 9. dxe5 {[%clk 0:02:58.6]} 9... Nxe5
{[%clk 0:02:59]} 10. Bf4 {[%clk 0:02:59.1]} 10... Nfd7 {[%clk 0:02:59.5]} 11.
Bg2 {[%clk 0:02:54.6]} 11... g5 {[%clk 0:02:59.5]} 12. Nxe5 {[%clk 0:02:50.2]}
12... gxf4 {[%clk 0:02:59.1]} 13. Nxd7 {[%clk 0:02:50.4]} 13... O-O-O {[%clk
0:02:59.3]} 14. O-O {[%clk 0:02:45.7]} 14... fxg3 {[%clk 0:02:42.5]} 15. hxg3
{[%clk 0:02:42.7]} 15... Rxd7 {[%clk 0:02:28.3]} 16. Qb3 {[%clk 0:02:42.2]}
16... Bc5 {[%clk 0:02:28.4]} 17. e3 {[%clk 0:02:12.5]} 17... Rg8 {[%clk
0:02:18.1]} 18. Ne2 {[%clk 0:02:00.8]} 18... h5 {[%clk 0:01:25.7]} 19. Qc4
{[%clk 0:01:54]} 19... Qe5 {[%clk 0:01:23.3]} 20. b4 {[%clk 0:01:43.6]} 20...
Bb6 {[%clk 0:01:17.1]} 21. Rad1 {[%clk 0:01:38.7]} 21... Be6 {[%clk 0:01:08.9]}
22. Qf4 {[%clk 0:01:33.4]} 22... Qg7 {[%clk 0:01:04.3]} 23. Rxd7 {[%clk
0:01:31.4]} 23... Bxd7 {[%clk 0:01:05.2]} 24. Rd1 {[%clk 0:01:29.1]} 24... Bc7
{[%clk 0:01:02.5]} 25. Qd4 {[%clk 0:01:24.4]} 25... Qxd4 {[%clk 0:01:02]} 26.
Rxd4 {[%clk 0:01:23.3]} 26... Bg4 {[%clk 0:01:01.2]} 27. Nf4 {[%clk 0:01:22]}
27... Be5 {[%clk 0:00:59.7]} 28. Re4 {[%clk 0:01:21.5]} 28... Bc3 {[%clk
0:00:57.2]} 29. Rc4 {[%clk 0:01:16.2]} 29... Bd2 {[%clk 0:00:44.3]} 30. b5
{[%clk 0:01:15.5]} 30... h4 {[%clk 0:00:34.7]} 31. bxc6 {[%clk 0:01:12.9]} 31...
bxc6 {[%clk 0:00:35.6]} 32. Rxc6+ {[%clk 0:01:11.1]} 32... Kd7 {[%clk
0:00:32.5]} 33. Rc2 {[%clk 0:01:10.9]} 33... Ba5 {[%clk 0:00:31.8]} 34. Nd5
{[%clk 0:01:08.9]} 34... Rg6 {[%clk 0:00:25.7]} 35. Be4 {[%clk 0:01:03.3]} 35...
f5 {[%clk 0:00:25]} 36. Bg2 {[%clk 0:01:00.2]} 36... hxg3 {[%clk 0:00:24.5]} 37.
fxg3 {[%clk 0:01:00.7]} 37... Rd6 {[%clk 0:00:22.9]} 38. Kf2 {[%clk 0:00:59.5]}
38... Bd1 {[%clk 0:00:21.2]} 39. Rc1 {[%clk 0:00:55.2]} 39... Bb3 {[%clk
0:00:17.3]} 40. Nf4 {[%clk 0:00:47.3]} 40... Rd2+ {[%clk 0:00:16.8]} 41. Kg1
{[%clk 0:00:47.7]} 41... Bb6 {[%clk 0:00:15.3]} 42. Rc3 {[%clk 0:00:47]} 42...
Bxa4 {[%clk 0:00:14.7]} 43. Bh3 {[%clk 0:00:46.4]} 43... Bb5 {[%clk 0:00:13.3]}
44. Bxf5+ {[%clk 0:00:46.1]} 44... Kd6 {[%clk 0:00:14]} 45. g4 {[%clk 0:00:43]}
45... Ke5 {[%clk 0:00:14.2]} 46. Ng2 {[%clk 0:00:35.8]} 46... Ba6 {[%clk
0:00:12.2]} 47. Rc2 {[%clk 0:00:24.5]} 47... Rd1+ {[%clk 0:00:11.3]} 48. Kh2
{[%clk 0:00:25.1]} 48... Bb7 {[%clk 0:00:11]} 49. Kg3 {[%clk 0:00:25.5]} 49...
Kf6 {[%clk 0:00:10.3]} 50. e4 {[%clk 0:00:24.4]} 50... Ba5 {[%clk 0:00:09.4]}
51. Nf4 {[%clk 0:00:23.9]} 51... Be1+ {[%clk 0:00:08.5]} 52. Kf3 {[%clk
0:00:23]} 52... Bb4 {[%clk 0:00:07.5]} 53. Rb2 {[%clk 0:00:21.7]} 53... a5
{[%clk 0:00:07.3]} 54. Nh3 {[%clk 0:00:15.4]} 54... Rf1+ {[%clk 0:00:07.2]} 55.
Kg2 {[%clk 0:00:15.4]} 55... Ra1 {[%clk 0:00:08.1]} 56. g5+ {[%clk 0:00:16]}
56... Ke5 {[%clk 0:00:08.1]} 57. g6 {[%clk 0:00:16.7]} 57... Kf6 {[%clk
0:00:03.8]} 58. Nf4 {[%clk 0:00:17.1]} 58... Kg7 {[%clk 0:00:03.6]} 59. Nh5+
{[%clk 0:00:17.4]} 59... Kh6 {[%clk 0:00:03.6]} 60. g7 {[%clk 0:00:18]} 60...
Bd5 {[%clk 0:00:02.4]} 61. exd5 {[%clk 0:00:17.8]} 61... Rg1+ {[%clk 0:00:01.4]}
62. Kxg1 {[%clk 0:00:17.3]} 1-0

[Event "Early-Titled-Tuesday-Blitz-February-20-2024"]
[Site "Chess.com"]
[Date "2024.02.20"]
[Round "7"]
[White "Juicy_Fork"]
[Black "Dixit_Nikhil"]
[Result "0-1"]
[WhiteElo "2487"]
[BlackElo "2599"]
[TimeControl "180+1"]
[EndTime "9:20:40 PST"]
[Termination "Dixit_Nikhil won on time"]

1. e4 {[%clk 0:02:56.7]} 1... c5 {[%clk 0:02:58.1]} 2. Nf3 {[%clk 0:02:55.1]}
2... Nc6 {[%clk 0:02:58.4]} 3. Bb5 {[%clk 0:02:54.7]} 3... e5 {[%clk 0:02:51.9]}
4. O-O {[%clk 0:02:53.8]} 4... Bd6 {[%clk 0:02:50.6]} 5. d4 {[%clk 0:02:53.9]}
5... cxd4 {[%clk 0:02:31]} 6. c3 {[%clk 0:02:53.4]} 6... Nge7 {[%clk 0:02:26.8]}
7. cxd4 {[%clk 0:02:53.2]} 7... exd4 {[%clk 0:02:20.5]} 8. Nxd4 {[%clk
0:02:49.5]} 8... O-O {[%clk 0:02:20.6]} 9. Nc3 {[%clk 0:02:49.1]} 9... Be5
{[%clk 0:02:15]} 10. Be3 {[%clk 0:02:47.4]} 10... d6 {[%clk 0:02:10.3]} 11. Nd5
{[%clk 0:02:28.6]} 11... Nxd5 {[%clk 0:02:05.8]} 12. exd5 {[%clk 0:02:25.8]}
12... Nxd4 {[%clk 0:02:05.1]} 13. Bxd4 {[%clk 0:02:25.5]} 13... Bd7 {[%clk
0:02:03.6]} 14. Bxd7 {[%clk 0:02:02.7]} 14... Qxd7 {[%clk 0:02:04.5]} 15. f4
{[%clk 0:02:03.4]} 15... Bxd4+ {[%clk 0:01:59.5]} 16. Qxd4 {[%clk 0:02:04.3]}
16... Rfe8 {[%clk 0:01:58.4]} 17. Rfe1 {[%clk 0:02:04.2]} 17... Rxe1+ {[%clk
0:01:57.4]} 18. Rxe1 {[%clk 0:02:05.1]} 18... Re8 {[%clk 0:01:57]} 19. Rf1
{[%clk 0:02:01.2]} 19... Qb5 {[%clk 0:01:51.7]} 20. f5 {[%clk 0:01:55.3]} 20...
f6 {[%clk 0:01:44.7]} 21. Rc1 {[%clk 0:01:50.2]} 21... h6 {[%clk 0:01:40]} 22.
h3 {[%clk 0:01:48.4]} 22... Kh7 {[%clk 0:01:34.9]} 23. Qg4 {[%clk 0:01:45.7]}
23... Qd7 {[%clk 0:01:14.3]} 24. Qg6+ {[%clk 0:01:44.7]} 24... Kh8 {[%clk
0:01:14.5]} 25. Kh2 {[%clk 0:01:40.7]} 25... Qe7 {[%clk 0:01:10.1]} 26. Kh1
{[%clk 0:01:02.4]} 26... Qe5 {[%clk 0:01:02.5]} 27. b3 {[%clk 0:00:57.8]} 27...
Rg8 {[%clk 0:01:00.4]} 28. Rd1 {[%clk 0:00:53.8]} 28... Qe2 {[%clk 0:00:58.2]}
29. Qg4 {[%clk 0:00:53.3]} 29... Qxa2 {[%clk 0:00:56.4]} 30. Re1 {[%clk
0:00:53.6]} 30... Qxb3 {[%clk 0:00:54.8]} 31. Qe4 {[%clk 0:00:34]} 31... a5
{[%clk 0:00:47.5]} 32. Re3 {[%clk 0:00:34]} 32... Qd1+ {[%clk 0:00:46.8]} 33.
Kh2 {[%clk 0:00:34]} 33... b5 {[%clk 0:00:43.9]} 34. Rg3 {[%clk 0:00:32.8]}
34... Qa1 {[%clk 0:00:41.1]} 35. Qd3 {[%clk 0:00:19.7]} 35... b4 {[%clk
0:00:36.5]} 36. Qa6 {[%clk 0:00:19.8]} 36... Qe5 {[%clk 0:00:34.3]} 37. Qxa5
{[%clk 0:00:19.5]} 37... b3 {[%clk 0:00:34.8]} 38. Qb6 {[%clk 0:00:14.7]} 38...
b2 {[%clk 0:00:33.5]} 39. h4 {[%clk 0:00:14.2]} 39... Kh7 {[%clk 0:00:31.3]} 40.
Qb3 {[%clk 0:00:12.5]} 40... Rc8 {[%clk 0:00:24]} 41. Qb7 {[%clk 0:00:04.6]}
41... Rg8 {[%clk 0:00:17.7]} 42. Qb3 {[%clk 0:00:01.6]} 42... Qxf5 {[%clk
0:00:16]} 43. Qxb2 {[%clk 0:00:01.4]} 43... Qxd5 {[%clk 0:00:16.3]} 44. Qc2+
{[%clk 0:00:01.8]} 44... Kh8 {[%clk 0:00:16.4]} 45. Kh1 {[%clk 0:00:01.5]} 45...
Qe5 {[%clk 0:00:16.5]} 46. Rf3 {[%clk 0:00:01.9]} 46... d5 {[%clk 0:00:16.2]}
47. Rf5 {[%clk 0:00:01.2]} 47... Qe1+ {[%clk 0:00:15.5]} 48. Kh2 {[%clk
0:00:01.3]} 48... Qxh4+ {[%clk 0:00:16.1]} 49. Kg1 {[%clk 0:00:02]} 49... Qe1+
{[%clk 0:00:16.5]} 50. Kh2 {[%clk 0:00:02.3]} 50... Qe4 {[%clk 0:00:17]} 51. Qf2
{[%clk 0:00:02]} 51... d4 {[%clk 0:00:17.3]} 52. Rxf6 {[%clk 0:00:01.4]} 52...
Qe5+ {[%clk 0:00:15.7]} 53. Rf4 {[%clk 0:00:01.3]} 53... Rf8 {[%clk 0:00:16.2]}
54. Qxd4 {[%clk 0:00:01.2]} 54... Qxf4+ {[%clk 0:00:15.8]} 0-1

[Event "Early-Titled-Tuesday-Blitz-February-20-2024"]
[Site "Chess.com"]
[Date "2024.02.20"]
[Round "7"]
[White "ChessLover0108"]
[Black "AnishOnYoutube"]
[Result "0-1"]
[WhiteElo "2971"]
[BlackElo "3024"]
[TimeControl "180+1"]
[EndTime "9:20:42 PST"]
[Termination "AnishOnYoutube won on time"]

1. d4 {[%clk 0:03:00.9]} 1... Nf6 {[%clk 0:02:58.9]} 2. c4 {[%clk 0:03:00.6]}
2... g6 {[%clk 0:02:59.5]} 3. Nc3 {[%clk 0:03:00.9]} 3... Bg7 {[%clk 0:03:00.1]}
4. e4 {[%clk 0:03:01.5]} 4... d6 {[%clk 0:03:00.6]} 5. Be2 {[%clk 0:03:00.6]}
5... O-O {[%clk 0:03:00.7]} 6. Nf3 {[%clk 0:03:01.3]} 6... e5 {[%clk 0:03:00.5]}
7. Be3 {[%clk 0:03:01.5]} 7... exd4 {[%clk 0:02:59.8]} 8. Nxd4 {[%clk
0:03:02.4]} 8... Re8 {[%clk 0:03:00.2]} 9. f3 {[%clk 0:03:03.1]} 9... c6 {[%clk
0:03:00.7]} 10. Bf2 {[%clk 0:03:02.4]} 10... d5 {[%clk 0:02:59.7]} 11. exd5
{[%clk 0:03:03.3]} 11... cxd5 {[%clk 0:03:00.2]} 12. O-O {[%clk 0:03:03.9]}
12... Nc6 {[%clk 0:03:00]} 13. c5 {[%clk 0:03:02.3]} 13... Nh5 {[%clk
0:02:59.5]} 14. Qd2 {[%clk 0:03:02.2]} 14... Be5 {[%clk 0:02:59.7]} 15. Rfe1
{[%clk 0:03:02.2]} 15... Nf4 {[%clk 0:02:52.9]} 16. Bf1 {[%clk 0:02:43.8]} 16...
Bxd4 {[%clk 0:02:02.7]} 17. Bxd4 {[%clk 0:02:33.9]} 17... Rxe1 {[%clk
0:01:30.8]} 18. Rxe1 {[%clk 0:02:31.3]} 18... Ne6 {[%clk 0:01:30.8]} 19. Bf2
{[%clk 0:02:18.1]} 19... d4 {[%clk 0:01:29.9]} 20. Ne4 {[%clk 0:02:13.4]} 20...
b6 {[%clk 0:01:30.3]} 21. cxb6 {[%clk 0:01:56]} 21... axb6 {[%clk 0:01:28.8]}
22. Bc4 {[%clk 0:01:56.4]} 22... Ra5 {[%clk 0:01:21]} 23. Bg3 {[%clk 0:01:23]}
23... Ne5 {[%clk 0:01:05.5]} 24. Bb3 {[%clk 0:00:39]} 24... d3 {[%clk
0:01:04.8]} 25. Qc3 {[%clk 0:00:25.9]} 25... Nd4 {[%clk 0:00:57.2]} 26. Bxe5
{[%clk 0:00:10.1]} 26... Rxe5 {[%clk 0:00:52.4]} 27. Qxd3 {[%clk 0:00:10.6]}
27... Re7 {[%clk 0:00:21.4]} 28. Rd1 {[%clk 0:00:04.1]} 28... Rd7 {[%clk
0:00:22]} 29. Kf2 {[%clk 0:00:03.9]} 29... Bb7 {[%clk 0:00:20.4]} 30. Qc3 {[%clk
0:00:03.6]} 30... Bxe4 {[%clk 0:00:20.1]} 31. fxe4 {[%clk 0:00:04]} 31... Qf6+
{[%clk 0:00:20.7]} 32. Ke1 {[%clk 0:00:02.9]} 32... Kg7 {[%clk 0:00:18.9]} 33.
g3 {[%clk 0:00:03]} 33... Qe5 {[%clk 0:00:14.7]} 34. Kf1 {[%clk 0:00:02.4]}
34... Qxe4 {[%clk 0:00:13.7]} 35. Kf2 {[%clk 0:00:02.6]} 35... Qe2+ {[%clk
0:00:12.3]} 36. Kg1 {[%clk 0:00:03.2]} 36... Qe5 {[%clk 0:00:12.6]} 37. Kg2
{[%clk 0:00:03]} 37... Rd6 {[%clk 0:00:11.2]} 38. Bc4 {[%clk 0:00:01.3]} 38...
Qe4+ {[%clk 0:00:11.3]} 39. Kg1 {[%clk 0:00:01.8]} 39... Kg8 {[%clk 0:00:09.1]}
40. Rf1 {[%clk 0:00:01.7]} 40... Rd7 {[%clk 0:00:04.4]} 41. Qd3 {[%clk
0:00:02.3]} 41... Qe5 {[%clk 0:00:03.8]} 42. Qc3 {[%clk 0:00:02.6]} 42... Kg7
{[%clk 0:00:03.3]} 43. Qc1 {[%clk 0:00:01.6]} 43... h5 {[%clk 0:00:02.9]} 44.
Bd3 {[%clk 0:00:02]} 44... b5 {[%clk 0:00:03.4]} 45. Qd1 {[%clk 0:00:02.1]}
45... Qd5 {[%clk 0:00:03.9]} 46. Qe1 {[%clk 0:00:02]} 46... Qc5 {[%clk
0:00:03.1]} 47. Qf2 {[%clk 0:00:02.3]} 47... Qd5 {[%clk 0:00:03.2]} 48. Qf6+
{[%clk 0:00:02]} 48... Kg8 {[%clk 0:00:03.8]} 49. Bxg6 {[%clk 0:00:02.4]} 49...
fxg6 {[%clk 0:00:01.8]} 50. Qxg6+ {[%clk 0:00:03.3]} 50... Rg7 {[%clk
0:00:02.3]} 51. Qe8+ {[%clk 0:00:02.5]} 51... Kh7 {[%clk 0:00:03]} 52. Qe3
{[%clk 0:00:03.3]} 52... Ne6 {[%clk 0:00:02.9]} 53. Rf6 {[%clk 0:00:02.7]} 53...
Ng5 {[%clk 0:00:03.4]} 54. h4 {[%clk 0:00:02.7]} 54... Ne4 {[%clk 0:00:03.4]}
55. Rf4 {[%clk 0:00:01.4]} 55... Rxg3+ {[%clk 0:00:03.5]} 0-1

[Event "Early-Titled-Tuesday-Blitz-February-20-2024"]
[Site "Chess.com"]
[Date "2024.02.20"]
[Round "7"]
[White "davigator"]
[Black "EsmeraldasAnderson03"]
[Result "0-1"]
[WhiteElo "2348"]
[BlackElo "2530"]
[TimeControl "180+1"]
[EndTime "9:20:45 PST"]
[Termination "EsmeraldasAnderson03 won by resignation"]

1. e4 {[%clk 0:03:00.9]} 1... c5 {[%clk 0:02:49.4]} 2. Nf3 {[%clk 0:03:00]} 2...
d6 {[%clk 0:02:49.3]} 3. d4 {[%clk 0:03:00.4]} 3... cxd4 {[%clk 0:02:50.2]} 4.
Nxd4 {[%clk 0:03:00.5]} 4... Nf6 {[%clk 0:02:48.3]} 5. Nc3 {[%clk 0:03:00.9]}
5... a6 {[%clk 0:02:47.1]} 6. Bg5 {[%clk 0:02:58.7]} 6... e6 {[%clk 0:02:47.4]}
7. f4 {[%clk 0:02:58.4]} 7... Qc7 {[%clk 0:02:47.1]} 8. Qe2 {[%clk 0:02:58.3]}
8... Be7 {[%clk 0:02:43.6]} 9. O-O-O {[%clk 0:02:58]} 9... O-O {[%clk
0:02:42.3]} 10. g4 {[%clk 0:02:57.9]} 10... b5 {[%clk 0:02:41.5]} 11. h4 {[%clk
0:02:56.5]} 11... b4 {[%clk 0:02:40.8]} 12. Nb1 {[%clk 0:02:55.2]} 12... Nc6
{[%clk 0:02:38.7]} 13. Nxc6 {[%clk 0:02:47.8]} 13... Qxc6 {[%clk 0:02:39.6]} 14.
Bg2 {[%clk 0:02:47.7]} 14... Bb7 {[%clk 0:02:34.5]} 15. Rhe1 {[%clk 0:02:45.5]}
15... Rac8 {[%clk 0:02:31.7]} 16. Rd2 {[%clk 0:02:45.3]} 16... Qc7 {[%clk
0:02:30.6]} 17. Bxf6 {[%clk 0:02:38.3]} 17... Bxf6 {[%clk 0:02:29.7]} 18. g5
{[%clk 0:02:38.5]} 18... Be7 {[%clk 0:02:25.3]} 19. Red1 {[%clk 0:02:31.7]}
19... a5 {[%clk 0:02:23.8]} 20. f5 {[%clk 0:02:22.2]} 20... a4 {[%clk
0:02:08.2]} 21. Qe3 {[%clk 0:02:15.2]} 21... d5 {[%clk 0:01:37]} 22. f6 {[%clk
0:02:04.7]} 22... Bc5 {[%clk 0:01:35.9]} 23. Qe2 {[%clk 0:01:58.2]} 23... b3
{[%clk 0:01:29]} 24. axb3 {[%clk 0:01:57.3]} 24... axb3 {[%clk 0:01:29.4]} 25.
fxg7 {[%clk 0:01:56.8]} 25... Rfd8 {[%clk 0:01:27.1]} 26. Nc3 {[%clk 0:01:52.3]}
26... bxc2 {[%clk 0:01:25.3]} 27. Rxc2 {[%clk 0:01:50.2]} 27... d4 {[%clk
0:01:19.9]} 28. Na4 {[%clk 0:01:49.1]} 28... Qf4+ {[%clk 0:01:16.5]} 29. Kb1
{[%clk 0:01:48]} 29... Ba7 {[%clk 0:01:16.6]} 30. Rxc8 {[%clk 0:01:36.3]} 30...
Rxc8 {[%clk 0:01:16.7]} 31. Qf3 {[%clk 0:01:26.5]} 31... Qxf3 {[%clk 0:00:56.3]}
32. Bxf3 {[%clk 0:01:25.6]} 32... e5 {[%clk 0:00:57.2]} 33. b3 {[%clk
0:01:14.9]} 33... Kxg7 {[%clk 0:00:55]} 34. h5 {[%clk 0:01:13.3]} 34... Ba6
{[%clk 0:00:35.7]} 35. Kb2 {[%clk 0:01:11.5]} 35... Bb5 {[%clk 0:00:32.8]} 36.
Bg4 {[%clk 0:01:11.1]} 36... Rc7 {[%clk 0:00:32.3]} 37. Bf5 {[%clk 0:01:09.5]}
37... Rb7 {[%clk 0:00:29.6]} 38. h6+ {[%clk 0:01:09]} 38... Kg8 {[%clk
0:00:29.6]} 39. Ka3 {[%clk 0:01:07.2]} 39... d3 {[%clk 0:00:27.9]} 40. Rc1
{[%clk 0:01:04.1]} 40... Rb8 {[%clk 0:00:28]} 41. Bg4 {[%clk 0:00:57.5]} 41...
Be3 {[%clk 0:00:27.6]} 42. Rc5 {[%clk 0:00:54.9]} 42... Bxc5+ {[%clk 0:00:27.3]}
43. Nxc5 {[%clk 0:00:54.1]} 43... d2 {[%clk 0:00:26.9]} 44. Bd1 {[%clk 0:00:52]}
44... Rd8 {[%clk 0:00:19.9]} 45. Kb4 {[%clk 0:00:50.1]} 45... Bf1 {[%clk
0:00:19.5]} 46. Kc3 {[%clk 0:00:49.5]} 46... Bg2 {[%clk 0:00:18.6]} 47. b4
{[%clk 0:00:49.1]} 47... Rd4 {[%clk 0:00:17.9]} 48. b5 {[%clk 0:00:49.3]} 48...
Bxe4 {[%clk 0:00:18.2]} 49. Nb3 {[%clk 0:00:44.6]} 49... Rd8 {[%clk 0:00:16.7]}
50. Nc5 {[%clk 0:00:36.8]} 50... Bd5 {[%clk 0:00:15.4]} 51. b6 {[%clk
0:00:32.8]} 51... e4 {[%clk 0:00:15.6]} 52. b7 {[%clk 0:00:29.6]} 52... e3
{[%clk 0:00:15.8]} 53. Kd3 {[%clk 0:00:27.4]} 53... Bb3+ {[%clk 0:00:15.5]} 54.
Kxe3 {[%clk 0:00:27.6]} 54... Bxd1 {[%clk 0:00:16]} 55. Nd7 {[%clk 0:00:27.7]}
55... Ba4 {[%clk 0:00:14.9]} 56. b8=Q {[%clk 0:00:24.1]} 56... Rxb8 {[%clk
0:00:14.8]} 57. Nf6+ {[%clk 0:00:24.2]} 57... Kf8 {[%clk 0:00:14.8]} 58. Kxd2
{[%clk 0:00:24.7]} 58... Rb5 {[%clk 0:00:15.4]} 59. Nxh7+ {[%clk 0:00:24.5]}
59... Kg8 {[%clk 0:00:16]} 60. Nf6+ {[%clk 0:00:23.4]} 60... Kh8 {[%clk
0:00:15.7]} 61. Ne4 {[%clk 0:00:22.8]} 61... Re5 {[%clk 0:00:16.3]} 62. Kd3
{[%clk 0:00:20]} 62... Bc6 {[%clk 0:00:17.2]} 63. Nf6 {[%clk 0:00:19.2]} 63...
Rxg5 {[%clk 0:00:17.7]} 64. Kd4 {[%clk 0:00:19.5]} 64... Rg6 {[%clk 0:00:17.6]}
65. Nh5 {[%clk 0:00:17.8]} 65... Rxh6 {[%clk 0:00:17.3]} 66. Nf4 {[%clk
0:00:18.7]} 66... Kg7 {[%clk 0:00:16.7]} 67. Ke5 {[%clk 0:00:19.6]} 67... Rh1
{[%clk 0:00:15.4]} 68. Nd3 {[%clk 0:00:18.7]} 68... Rh5+ {[%clk 0:00:13]} 69.
Kf4 {[%clk 0:00:18.3]} 69... Ra5 {[%clk 0:00:12.8]} 70. Ne5 {[%clk 0:00:18.1]}
70... Rxe5 {[%clk 0:00:12.6]} 71. Kxe5 {[%clk 0:00:18.1]} 71... Kg6 {[%clk
0:00:13.4]} 72. Kf4 {[%clk 0:00:18.5]} 72... f5 {[%clk 0:00:13.7]} 0-1